fUST/lending_fUST_20251021
["ID","MTS","AMOUNT","RATE_DAILY","PERIOD"]
[391964482,1761030926596,-6119.0429318,0.000339,120]
[391964483,1761030926646,-1008.63917874,0.000339,120]
[391964484,1761030926696,-1529.22445891,0.000339,120]
[391964485,1761030926744,-250.0,0.000339,10]
[391964486,1761030926801,-152.26739,0.00033916,7]
[391964487,1761030926855,-151.100434,0.00033916,7]
[391964488,1761030926904,-914.68251905,0.0003395,30]
[391964489,1761030926956,-152.54,0.00033975,60]
[391964490,1761030927007,-519.7059224,0.0003399,60]
[391964491,1761030927059,-152.37,0.00033997,60]
[391964492,1761030927109,-500.0,0.00034,120]
[391964493,1761030927160,-200.0,0.00034,14]
[391964494,1761030927212,-250.0,0.00034,10]
[391964495,1761030927267,-152.37,0.00034097,60]
[391964496,1761030927320,-250.0,0.000341,10]
[391964497,1761030927378,-1100.0,0.00034124,7]
[391964498,1761030927430,-177.8011749,0.00034176,11]
[391964499,1761030927486,-152.37,0.00034197,60]
[391964500,1761030927539,-250.0,0.000342,10]
[391964501,1761030927594,-2999.0,0.00034246,120]
[391964502,1761030927650,-152.37,0.00034297,60]
[391964503,1761030927703,-250.0,0.000343,10]
[391964504,1761030927761,-152.26739,0.00034374,7]
[391964505,1761030927819,-151.100434,0.00034374,7]
[391964506,1761030927874,-330.36682553,0.00034378,120]
[391964507,1761030927930,-152.37,0.00034397,60]
[391964508,1761030927984,-5995.0,0.000344,14]
[391964509,1761030928037,-250.0,0.000344,10]
[391964510,1761030928092,-152.37,0.00034497,60]
[391964511,1761030928144,-500.0,0.000345,120]
[391964512,1761030928403,-400.11079335,0.000345,14]
[391964513,1761030928466,-250.0,0.000345,10]
[391964514,1761030928528,-4494.32,0.00034587,30]
[391964515,1761030928581,-152.37,0.00034597,60]
[391964516,1761030928630,-250.0,0.000346,10]
[391964517,1761030928683,-152.37,0.00034697,60]
[391964518,1761030928735,-904.6878942,0.000347,30]
[391964519,1761030928788,-152.37,0.00034797,60]
[391964520,1761030928838,-1178.36,0.000348,14]
[391964521,1761030928889,-152.26739,0.00034832,7]
[391964522,1761030928941,-151.100434,0.00034832,7]
[391964523,1761030928992,-177.8011749,0.00034851,13]
[391964524,1761030929045,-152.37,0.00034897,60]
[391964525,1761030929098,-1110.48142832,0.000349,120]
[391964526,1761030929152,-478.96476665,0.000349,120]
[391964527,1761030929205,-181.09763267,0.000349,120]
[391964528,1761030929259,-6119.0429318,0.000349,120]
[391964529,1761030929316,-1008.63917874,0.000349,120]
[391964530,1761030929369,-1529.22445891,0.000349,120]
[391964531,1761030929423,-2999.0,0.00034931,120]
[391964532,1761030929475,-200.0,0.00034937,120]
[391964533,1761030929525,-1100.0,0.00034946,7]
[391964534,1761030929580,-152.37,0.00034997,60]
[391964535,1761030929630,-1000.0,0.00034999,7]
[391964536,1761030929680,-200.0,0.00035,120]
[391964537,1761030929731,-250.0,0.00035,7]
[391964538,1761030929784,-150.0,0.00035,69]
[391964539,1761030929833,-345.34,0.00035,60]
[391964540,1761030929887,-500.0,0.00035,120]
[391964541,1761030929939,-200.0,0.00035,14]
[391964542,1761030929995,-152.37,0.00035097,60]
[391964543,1761030930051,-5000.0,0.00035111,30]
[391964544,1761030930104,-152.37,0.00035197,60]
[391964545,1761030930158,-152.37,0.00035297,60]
[391964546,1761030930212,-200.0,0.000353,120]
[391964547,1761030930268,-152.37,0.00035397,60]
[391964548,1761030930321,-1200.0,0.000354,120]
[391964549,1761030930373,-1656.36211854,0.000354,120]
[391964550,1761030930423,-150.0,0.000354,76]
[391964551,1761030930474,-150.0,0.000354,76]
[391964552,1761030930527,-834632.61229423,0.00035444,7]
[391964554,1761031232224,10000.0,0.00024075,2]
[391964555,1761031244535,10000.0,0.00024075,2]
[391964558,1761031512374,3273.5,0.00030136,120]
[391964562,1761031594629,1306.0,0.00030136,120]
[391964566,1761031718981,0.01,0.0002,2]
[391964567,1761031719005,255.4032306,0.0002,2]
[391964582,1761031832427,-460.49673598,0.00024142,2]
[391964583,1761031832438,-613.5,0.00024142,2]
[391964584,1761031832450,-1438.57217911,0.00024142,2]
[391964585,1761031832461,-1081.33751474,0.00024142,2]
[391964586,1761031832472,-612.63214996,0.00024142,2]
[391964587,1761031832483,-1360.70304087,0.00024142,2]
[391964598,1761031838404,-4252.58308432,0.00024142,2]
[391964599,1761031838414,-300.0,0.00025204,2]
[391964600,1761031838423,-279.82550056,0.00025205,2]
[391964601,1761031838432,-258.8128756,0.00025456,30]
[391964602,1761031838442,-666.0,0.00025471,2]
[391964603,1761031838451,-151.0,0.00026464,2]
[391964604,1761031838461,-151.0,0.00026464,2]
[391964605,1761031838470,-151.0,0.00026464,2]
[391964606,1761031838479,-151.0,0.00026464,2]
[391964607,1761031838489,-151.0,0.00026464,2]
[391964608,1761031838498,-151.0,0.00026464,2]
[391964609,1761031838508,-151.0,0.00026464,2]
[391964610,1761031838517,-199.03493984,0.00026464,2]
[391964611,1761031838531,-722.49857967,0.0002647,2]
[391964612,1761031838540,-370000.0,0.0002648,2]
[391964613,1761031838550,-2887.39,0.000265,7]
[391964614,1761031838559,-403.05172659,0.00026846,2]
[391964615,1761031838569,-14782.5,0.00027,2]
[391964616,1761031838578,-12997.22046723,0.00027,2]
[391964617,1761031838588,-600.0,0.00027009,30]
[391964618,1761031838598,-420.0,0.00027299,2]
[391964619,1761031838609,-186.158,0.00027479,16]
[391964620,1761031838620,-3411.5799786,0.000285,7]
[391964621,1761031838630,-168.63598432,0.00028959,2]
[391964622,1761031838641,-6003.41147125,0.00029,5]
[391964623,1761031838650,-587.0,0.00029567,2]
[391964624,1761031838660,-720.0,0.0002971,30]
[391964625,1761031838669,-4684.12275666,0.0003,2]
[391964626,1761031838678,-152.85868253,0.0003,60]
[391964627,1761031838687,-1526.53959623,0.0003,2]
[391964628,1761031838697,-1008.63917874,0.00031,120]
[391964629,1761031838706,-3059.5214659,0.00031,120]
[391964630,1761031838715,-1110.48142832,0.00031,120]
[391964631,1761031838724,-632.0,0.00031201,2]
[391964632,1761031838733,-983.0,0.00031201,2]
[391964633,1761031838743,-250.0,0.00031433,2]
[391964634,1761031838752,-1008.63917874,0.000319,120]
[391964635,1761031838761,-3059.5214659,0.000319,120]
[391964636,1761031838770,-1110.48142832,0.000319,120]
[391964637,1761031838780,-2887.39,0.000319,7]
[391964638,1761031838788,-7891.88191261,0.00032,30]
[391964639,1761031838797,-823.0,0.00032025,2]
[391964640,1761031838807,-166.392157,0.0003234,7]
[391964641,1761031838816,-239.1356478,0.00032501,2]
[391964642,1761031838825,-864.0,0.00032681,30]
[391964643,1761031838834,-166.392157,0.0003283,30]
[391964644,1761031838845,-2999.0,0.00032876,120]
[391964645,1761031838854,-1008.63917874,0.000329,120]
[391964646,1761031838864,-3059.5214659,0.000329,120]
[391964647,1761031838873,-1110.48142832,0.000329,120]
[391964648,1761031838882,-500.0,0.00033,12]
[391964649,1761031838891,-500.0,0.00033,12]
[391964650,1761031838900,-86190.448649,0.00033,6]
[391964651,1761031838909,-21637.69837665,0.00033,5]
[391964652,1761031838918,-170.46549692,0.00033,120]
[391964653,1761031838927,-5263.22158803,0.00033371,2]
[391964654,1761031838936,-1337.474307,0.0003344,8]
[391964655,1761031838946,-1000.0,0.0003346,8]
[391964656,1761031838955,-1950.67,0.0003347,30]
[391964657,1761031838964,-443.87579455,0.0003347,7]
[391964658,1761031838973,-398.35879635,0.0003347,7]
[391964659,1761031838982,-469.60310485,0.0003347,7]
[391964660,1761031838992,-17481.22242505,0.00033471,2]
[391964661,1761031839001,-635.03476002,0.00033471,2]
[391964662,1761031839009,-2238.84562298,0.00033471,2]
[391964663,1761031839019,-1286.62125284,0.00033471,2]
[391964678,1761032282073,423.001974,0.00013699,2]
[391964679,1761032282273,423.001974,0.00020187,2]
[391964684,1761032578023,9996.97,0.00030136,120]
[391964685,1761032854366,10000.0,0.00024073,2]
[391964687,1761032862665,0.01,0.00024073,2]
[391964688,1761032862689,9999.99,0.00024073,2]
[391964689,1761033003749,6509.0,0.00024075,2]
[391964699,1761033032637,-3300.0,0.00024702,2]
[391964700,1761033032647,-1387.02102249,0.00024952,2]
[391964701,1761033032656,-160.74,0.00025204,2]
[391964702,1761033032666,-150.0,0.00026097,30]
[391964703,1761033032675,-151.43224926,0.000263,2]
[391964704,1761033032685,-300.0,0.00026369,2]
[391964705,1761033032695,-981.11,0.0002637,10]
[391964706,1761033032704,-19184.5613043,0.0002637,2]
[391964707,1761033032713,-407.4980652,0.0002637,2]
[391964708,1761033032723,-25676.53561937,0.0002638,2]
[391964710,1761033038605,-141503.54017424,0.0002638,2]
[391964711,1761033038618,-5406.0,0.0002638,2]
[391964753,1761033092348,29242.14209384,0.00030137,120]
[391964781,1761033418276,3491.01,0.00024075,2]
[391964782,1761033418300,6508.99,0.00024075,2]
[391964784,1761033609063,10002.97,0.0003013,120]
[391964785,1761033734551,-500.0,0.00033456,20]
[391964786,1761033734597,-500.0,0.00033456,20]
[391964787,1761033734638,-500.0,0.00033456,20]
[391964788,1761033734678,-500.0,0.00033456,20]
[391964789,1761033734718,-500.0,0.00033456,20]
[391964790,1761033734760,-500.0,0.00033456,20]
[391964791,1761033734801,-500.0,0.00033456,20]
[391964792,1761033734843,-500.0,0.00033456,20]
[391964793,1761033734884,-500.0,0.00033456,20]
[391964794,1761033734927,-500.0,0.00033456,20]
[391964795,1761033734973,-500.0,0.00033456,20]
[391964796,1761033735023,-500.0,0.00033456,20]
[391964797,1761033735070,-500.0,0.00033456,20]
[391964798,1761033735117,-500.0,0.00033456,20]
[391964799,1761033735164,-500.0,0.00033456,20]
[391964800,1761033735206,-500.0,0.00033456,20]
[391964801,1761033735249,-500.0,0.00033456,20]
[391964802,1761033735291,-500.0,0.00033456,20]
[391964803,1761033735334,-500.0,0.00033456,20]
[391964804,1761033735379,-365.25394059,0.00033456,20]
[391964805,1761033735424,-501.09870338,0.00033456,20]
[391964806,1761033735479,-421.12202619,0.00033456,120]
[391964807,1761033735541,-688.46,0.00033456,120]
[391964808,1761033735600,-500.0,0.00033456,120]
[391964809,1761033735654,-1267.99,0.00033456,120]
[391964810,1761033735703,-1236.35,0.00033456,120]
[391964811,1761033735756,-688.53018982,0.00033456,120]
[391964812,1761033735806,-1320.25,0.00033456,120]
[391964813,1761033735862,-500.0,0.00033456,120]
[391964814,1761033735909,-1267.99,0.00033456,120]
[391964815,1761033735956,-1236.35,0.00033456,120]
[391964816,1761033735999,-1320.25,0.00033456,120]
[391964817,1761033736046,-500.0,0.00033456,120]
[391964818,1761033736092,-500.0,0.00033456,120]
[391964819,1761033736139,-1236.35,0.00033456,120]
[391964820,1761033736183,-1267.99,0.00033456,120]
[391964821,1761033736228,-500.0,0.00033456,120]
[391964822,1761033736272,-500.0,0.00033456,120]
[391964823,1761033736316,-1268.22558666,0.00033456,120]
[391964824,1761033736365,-500.0,0.00033456,120]
[391964825,1761033736413,-504.93558903,0.00033456,120]
[391964826,1761033736458,-1320.25,0.00033456,120]
[391964827,1761033736504,-500.0,0.00033456,120]
[391964828,1761033736546,-1236.35,0.00033456,120]
[391964829,1761033736588,-1320.25,0.00033456,120]
[391964830,1761033736637,-559.84,0.00033456,120]
[391964831,1761033736680,-500.0,0.00033456,120]
[391964832,1761033736727,-1236.35,0.00033456,120]
[391964833,1761033736777,-1320.38199639,0.00033456,120]
[391964834,1761033736826,-559.84,0.00033456,120]
[391964835,1761033736875,-500.0,0.00033456,120]
[391964836,1761033736926,-1236.35,0.00033456,120]
[391964837,1761033736980,-559.84,0.00033456,120]
[391964838,1761033737034,-500.0,0.00033456,120]
[391964839,1761033737081,-1236.35,0.00033456,120]
[391964840,1761033737132,-500.0,0.00033456,120]
[391964841,1761033737180,-559.84,0.00033456,120]
[391964842,1761033737232,-1236.35,0.00033456,120]
[391964843,1761033737286,-500.0,0.00033456,120]
[391964844,1761033737339,-559.84,0.00033456,120]
[391964845,1761033737388,-1236.35,0.00033456,120]
[391964846,1761033737436,-514.84615832,0.00033456,120]
[391964847,1761033737486,-559.84,0.00033456,120]
[391964848,1761033737537,-1236.35,0.00033456,120]
[391964849,1761033737587,-559.84,0.00033456,120]
[391964850,1761033737634,-1236.35,0.00033456,120]
[391964851,1761033737676,-500.0,0.00033456,120]
[391964852,1761033737721,-1236.35,0.00033456,120]
[391964853,1761033737766,-500.0,0.00033456,120]
[391964854,1761033737810,-667.26,0.00033456,120]
[391964855,1761033737855,-1236.35,0.00033456,120]
[391964856,1761033737898,-559.84,0.00033456,120]
[391964857,1761033737944,-500.0,0.00033456,120]
[391964858,1761033737990,-667.26,0.00033456,120]
[391964859,1761033738037,-1236.35,0.00033456,120]
[391964860,1761033738082,-559.84,0.00033456,120]
[391964861,1761033738130,-500.0,0.00033456,120]
[391964862,1761033738179,-667.26,0.00033456,120]
[391964863,1761033738226,-1236.35,0.00033456,120]
[391964864,1761033738273,-559.84,0.00033456,120]
[391964865,1761033738321,-1677.66,0.00033456,120]
[391964866,1761033738368,-500.0,0.00033456,120]
[391964867,1761033738414,-667.26,0.00033456,120]
[391964868,1761033738456,-1236.35,0.00033456,120]
[391964869,1761033738500,-559.84,0.00033456,120]
[391964870,1761033738709,-1677.66,0.00033456,120]
[391964871,1761033738758,-500.0,0.00033456,120]
[391964872,1761033738802,-667.26,0.00033456,120]
[391964873,1761033738843,-1236.35,0.00033456,120]
[391964874,1761033738886,-1677.66,0.00033456,120]
[391964875,1761033738929,-559.84,0.00033456,120]
[391964876,1761033738971,-500.0,0.00033456,120]
[391964877,1761033739014,-667.26,0.00033456,120]
[391964878,1761033739058,-1236.42355093,0.00033456,120]
[391964879,1761033739103,-559.84,0.00033456,120]
[391964880,1761033739148,-1677.66,0.00033456,120]
[391964881,1761033739189,-500.0,0.00033456,120]
[391964882,1761033739232,-667.26,0.00033456,120]
[391964883,1761033739275,-1677.66,0.00033456,120]
[391964884,1761033739319,-500.0,0.00033456,120]
[391964885,1761033739369,-559.84,0.00033456,120]
[391964886,1761033739414,-667.26,0.00033456,120]
[391964887,1761033739457,-500.0,0.00033456,120]
[391964888,1761033739501,-1677.66,0.00033456,120]
[391964889,1761033739543,-559.84,0.00033456,120]
[391964890,1761033739584,-667.26,0.00033456,120]
[391964891,1761033739627,-500.0,0.00033456,120]
[391964892,1761033739669,-1677.66,0.00033456,120]
[391964893,1761033739711,-559.84,0.00033456,120]
[391964894,1761033739756,-667.26,0.00033456,120]
[391964895,1761033739800,-500.0,0.00033456,120]
[391964896,1761033739844,-1677.66,0.00033456,120]
[391964897,1761033739888,-559.84,0.00033456,120]
[391964898,1761033739932,-667.26,0.00033456,120]
[391964899,1761033739977,-1677.66,0.00033456,120]
[391964900,1761033740026,-559.84,0.00033456,120]
[391964901,1761033740072,-667.26,0.00033456,120]
[391964902,1761033740118,-1677.66,0.00033456,120]
[391964903,1761033740163,-500.0,0.00033456,120]
[391964904,1761033740210,-559.84,0.00033456,120]
[391964905,1761033740255,-667.26,0.00033456,120]
[391964906,1761033740299,-1265.18,0.00033456,120]
[391964907,1761033740341,-559.84,0.00033456,120]
[391964908,1761033740387,-500.0,0.00033456,120]
[391964909,1761033740434,-1677.66,0.00033456,120]
[391964910,1761033740476,-500.0,0.00033456,120]
[391964911,1761033740517,-1265.18,0.00033456,120]
[391964912,1761033740558,-500.0,0.00033456,120]
[391964913,1761033740601,-559.84,0.00033456,120]
[391964914,1761033740645,-1677.66,0.00033456,120]
[391964915,1761033740689,-667.26,0.00033456,120]
[391964916,1761033740732,-500.0,0.00033456,120]
[391964917,1761033740782,-1265.18,0.00033456,120]
[391964918,1761033740828,-501.27055657,0.00033456,120]
[391964919,1761033740874,-559.84,0.00033456,120]
[391964920,1761033740921,-500.0,0.00033456,120]
[391964921,1761033740968,-1677.66,0.00033456,120]
[391964922,1761033741019,-500.0,0.00033456,120]
[391964923,1761033741071,-667.26,0.00033456,120]
[391964924,1761033741120,-1265.18,0.00033456,120]
[391964925,1761033741170,-559.84,0.00033456,120]
[391964926,1761033741220,-500.0,0.00033456,120]
[391964927,1761033741268,-1677.66,0.00033456,120]
[391964928,1761033741315,-667.26,0.00033456,120]
[391964929,1761033741364,-429.41728117,0.00033456,120]
[391964930,1761033741411,-1265.18,0.00033456,120]
[391964931,1761033741454,-500.0,0.00033456,120]
[391964932,1761033741498,-1677.66,0.00033456,120]
[391964933,1761033741540,-667.26,0.00033456,120]
[391964934,1761033741583,-1265.18,0.00033456,120]
[391964935,1761033741625,-559.93152252,0.00033456,120]
[391964936,1761033741666,-500.0,0.00033456,120]
[391964937,1761033741709,-667.26,0.00033456,120]
[391964938,1761033741754,-1265.18,0.00033456,120]
[391964939,1761033741799,-1677.66,0.00033456,120]
[391964940,1761033741849,-667.26,0.00033456,120]
[391964941,1761033741901,-1265.18,0.00033456,120]
[391964942,1761033741949,-500.0,0.00033456,120]
[391964943,1761033741997,-667.26,0.00033456,120]
[391964944,1761033742043,-1677.66,0.00033456,120]
[391964945,1761033742087,-1265.18,0.00033456,120]
[391964946,1761033742132,-500.0,0.00033456,120]
[391964947,1761033742176,-667.26,0.00033456,120]
[391964948,1761033742222,-1677.66,0.00033456,120]
[391964949,1761033742263,-1265.18,0.00033456,120]
[391964950,1761033742307,-667.26,0.00033456,120]
[391964951,1761033742352,-1677.66,0.00033456,120]
[391964952,1761033742396,-1265.18,0.00033456,120]
[391964953,1761033742437,-667.26,0.00033456,120]
[391964954,1761033742480,-1677.66,0.00033456,120]
[391964955,1761033742527,-500.0,0.00033456,120]
[391964956,1761033742575,-1265.18,0.00033456,120]
[391964957,1761033742623,-500.0,0.00033456,120]
[391964958,1761033742680,-667.462768,0.00033456,120]
[391964959,1761033742739,-1677.66,0.00033456,120]
[391964960,1761033742789,-500.0,0.00033456,120]
[391964961,1761033742833,-1265.18,0.00033456,120]
[391964962,1761033742878,-500.0,0.00033456,120]
[391964963,1761033742924,-1677.66,0.00033456,120]
[391964964,1761033742973,-1265.18,0.00033456,120]
[391964965,1761033743023,-500.0,0.00033456,120]
[391964966,1761033743073,-500.0,0.00033456,120]
[391964967,1761033743124,-1677.66,0.00033456,120]
[391964968,1761033743176,-1265.18,0.00033456,120]
[391964969,1761033743228,-500.0,0.00033456,120]
[391964970,1761033743284,-500.0,0.00033456,120]
[391964971,1761033743340,-1677.77956375,0.00033456,120]
[391964972,1761033743390,-1265.18,0.00033456,120]
[391964973,1761033743436,-500.0,0.00033456,120]
[391964974,1761033743629,-500.0,0.00033456,120]
[391964975,1761033743680,-1265.18,0.00033456,120]
[391964976,1761033743727,-500.0,0.00033456,120]
[391964977,1761033743776,-1265.18,0.00033456,120]
[391964978,1761033743822,-500.0,0.00033456,120]
[391964979,1761033743870,-1245.84,0.00033456,120]
[391964980,1761033743917,-1265.18,0.00033456,120]
[391964981,1761033743965,-349.44876724,0.00033456,120]
[391964982,1761033744016,-1245.84,0.00033456,120]
[391964983,1761033744072,-1265.18,0.00033456,120]
[391964984,1761033744125,-1245.84,0.00033456,120]
[391964985,1761033744180,-1265.18,0.00033456,120]
[391964986,1761033744233,-1245.84,0.00033456,120]
[391964987,1761033744286,-1265.18,0.00033456,120]
[391964988,1761033744338,-1245.84,0.00033456,120]
[391964989,1761033744394,-1265.18,0.00033456,120]
[391964990,1761033744446,-955.14,0.00033456,120]
[391964991,1761033744497,-500.0,0.00033456,120]
[391964992,1761033744548,-1245.84,0.00033456,120]
[391964993,1761033744596,-1265.39300736,0.00033456,120]
[391964994,1761033744641,-955.14,0.00033456,120]
[391964995,1761033744684,-500.0,0.00033456,120]
[391964996,1761033744730,-1245.84,0.00033456,120]
[391964997,1761033744774,-955.14,0.00033456,120]
[391964998,1761033744816,-500.0,0.00033456,120]
[391964999,1761033744856,-1245.84,0.00033456,120]
[391965000,1761033744900,-955.14,0.00033456,120]
[391965001,1761033744945,-1245.84,0.00033456,120]
[391965002,1761033744989,-511.59437961,0.00033456,120]
[391965003,1761033745035,-955.14,0.00033456,120]
[391965004,1761033745080,-1245.84,0.00033456,120]
[391965005,1761033745125,-500.0,0.00033456,120]
[391965006,1761033745168,-955.14,0.00033456,120]
[391965007,1761033745213,-1245.84,0.00033456,120]
[391965008,1761033745259,-500.0,0.00033456,120]
[391965009,1761033745303,-1245.84,0.00033456,120]
[391965010,1761033745347,-500.0,0.00033456,120]
[391965011,1761033745390,-955.14,0.00033456,120]
[391965012,1761033745433,-1245.84,0.00033456,120]
[391965013,1761033745478,-500.0,0.00033456,120]
[391965014,1761033745527,-955.14,0.00033456,120]
[391965015,1761033745573,-1245.84,0.00033456,120]
[391965016,1761033745618,-500.0,0.00033456,120]
[391965017,1761033745661,-955.14,0.00033456,120]
[391965018,1761033745704,-1245.84,0.00033456,120]
[391965019,1761033745751,-500.0,0.00033456,120]
[391965020,1761033745793,-955.14,0.00033456,120]
[391965021,1761033745836,-940.95,0.00033456,120]
[391965022,1761033745879,-1245.84,0.00033456,120]
[391965023,1761033745921,-500.0,0.00033456,120]
[391965024,1761033745965,-955.14,0.00033456,120]
[391965025,1761033746012,-500.0,0.00033456,120]
[391965026,1761033746061,-940.95,0.00033456,120]
[391965027,1761033746110,-1245.84,0.00033456,120]
[391965028,1761033746157,-509.32699626,0.00033456,120]
[391965029,1761033746200,-955.14,0.00033456,120]
[391965030,1761033746247,-537.26084532,0.00033456,120]
[391965031,1761033746293,-940.95,0.00033456,120]
[391965032,1761033746340,-1245.84,0.00033456,120]
[391965033,1761033746388,-955.14,0.00033456,120]
[391965034,1761033746433,-1245.84,0.00033456,120]
[391965035,1761033746482,-955.14,0.00033456,120]
[391965036,1761033746532,-1245.84,0.00033456,120]
[391965037,1761033746579,-955.14,0.00033456,120]
[391965038,1761033746625,-1245.84,0.00033456,120]
[391965039,1761033746670,-955.14,0.00033456,120]
[391965040,1761033746715,-1245.84,0.00033456,120]
[391965041,1761033746759,-955.14,0.00033456,120]
[391965042,1761033746807,-500.0,0.00033456,120]
[391965043,1761033746856,-1245.84,0.00033456,120]
[391965044,1761033746908,-955.14,0.00033456,120]
[391965045,1761033746962,-500.0,0.00033456,120]
[391965046,1761033747017,-1245.92974351,0.00033456,120]
[391965047,1761033747072,-955.14,0.00033456,120]
[391965048,1761033747128,-940.95,0.00033456,120]
[391965049,1761033747184,-500.0,0.00033456,120]
[391965050,1761033747235,-955.14,0.00033456,120]
[391965051,1761033747285,-500.0,0.00033456,120]
[391965052,1761033747343,-3685.15,0.00033456,120]
[391965053,1761033747393,-500.0,0.00033456,120]
[391965054,1761033747445,-955.14,0.00033456,120]
[391965055,1761033747491,-500.0,0.00033456,120]
[391965056,1761033747538,-3685.15,0.00033456,120]
[391965057,1761033747580,-500.0,0.00033456,120]
[391965058,1761033747623,-955.14,0.00033456,120]
[391965059,1761033747667,-940.95,0.00033456,120]
[391965060,1761033747708,-259.69067775,0.00033456,120]
[391965061,1761033747756,-455.30902387,0.00033456,120]
[391965062,1761033747800,-500.0,0.00033456,120]
[391965063,1761033747844,-955.14,0.00033456,120]
[391965064,1761033747890,-940.95,0.00033456,120]
[391965065,1761033747936,-500.0,0.00033456,120]
[391965066,1761033747986,-955.36513394,0.00033456,120]
[391965067,1761033748038,-3685.15,0.00033456,120]
[391965068,1761033748087,-940.95,0.00033456,120]
[391965069,1761033748133,-500.0,0.00033456,120]
[391965070,1761033748182,-3685.15,0.00033456,120]
[391965071,1761033748230,-940.95,0.00033456,120]
[391965072,1761033748275,-500.0,0.00033456,120]
[391965073,1761033748319,-1271.85,0.00033456,120]
[391965074,1761033748369,-3685.15,0.00033456,120]
[391965075,1761033748412,-940.95,0.00033456,120]
[391965076,1761033748456,-500.0,0.00033456,120]
[391965077,1761033748646,-1271.85,0.00033456,120]
[391965078,1761033748700,-3685.15,0.00033456,120]
[391965079,1761033748750,-940.95,0.00033456,120]
[391965080,1761033748797,-160.95600782,0.00033456,120]
[391965081,1761033748844,-1271.85,0.00033456,120]
[391965082,1761033748893,-3685.15,0.00033456,120]
[391965083,1761033748940,-500.0,0.00033456,120]
[391965084,1761033748989,-940.95,0.00033456,120]
[391965085,1761033749039,-1271.85,0.00033456,120]
[391965086,1761033749091,-3685.15,0.00033456,120]
[391965087,1761033749142,-500.0,0.00033456,120]
[391965088,1761033749193,-940.95,0.00033456,120]
[391965089,1761033749245,-1271.85,0.00033456,120]
[391965090,1761033749297,-3685.15,0.00033456,120]
[391965091,1761033749350,-500.0,0.00033456,120]
[391965092,1761033749403,-940.95,0.00033456,120]
[391965093,1761033749451,-1271.85,0.00033456,120]
[391965094,1761033749501,-3685.15,0.00033456,120]
[391965095,1761033749547,-500.0,0.00033456,120]
[391965096,1761033749591,-940.95,0.00033456,120]
[391965097,1761033749634,-632.85,0.00033456,120]
[391965098,1761033749676,-1271.85,0.00033456,120]
[391965099,1761033749720,-3685.15,0.00033456,120]
[391965100,1761033749762,-500.0,0.00033456,120]
[391965101,1761033749807,-940.95,0.00033456,120]
[391965102,1761033749851,-632.85,0.00033456,120]
[391965103,1761033749898,-765.71,0.00033456,120]
[391965104,1761033749945,-3685.15,0.00033456,120]
[391965105,1761033749990,-1271.85,0.00033456,120]
[391965106,1761033750036,-500.0,0.00033456,120]
[391965107,1761033750083,-940.95,0.00033456,120]
[391965108,1761033750129,-632.85,0.00033456,120]
[391965109,1761033750183,-765.71,0.00033456,120]
[391965110,1761033750231,-1271.85,0.00033456,120]
[391965111,1761033750283,-3685.15,0.00033456,120]
[391965112,1761033750331,-500.0,0.00033456,120]